bitfinex-derivatives/quotes_ETHF0:USTF0_20250612
["timestamp","ask_amount","ask_price","bid_price","bid_amount"]
[1749695622245,1.44395973,2769.6,2769.3,7.5598]
[1749695622548,3.33085973,2769.5,2769.4,17.38698]
[1749695622736,3.33085973,2769.5,2769.3,24.94679]
[1749695622941,1.44395973,2769.4,2769.3,24.94679]
[1749695624146,0.6413,2769.7,2769.3,24.2248]
[1749695624336,0.6413,2769.7,2769.5,0.72195]
[1749695624337,1.444237,2769.6,2769.5,0.72195]
[1749695627142,1.444237,2769.6,2769.5,1.91835]
[1749695628548,1.444237,2769.6,2769.5,17.38695]
[1749695630452,1.444237,2769.6,2769.4,0.6419]
[1749695630453,1.444237,2769.6,2769.4,0.72196]
[1749695630650,2.090537,2769.5,2769.4,4.351]
[1749695630846,3.997087,2769.5,2769.4,21.016]
[1749695631251,0.72198,2769.4,2769.3,3.2078]
[1749695631551,3.293737,2769.4,2769.3,19.8728]
[1749695631742,4.015717,2769.4,2769.3,3.2078]
[1749695631941,4.015717,2769.4,2769.3,19.8728]
[1749695632555,4.015717,2769.4,2769.3,20.5948]
[1749695632952,3.293737,2769.4,2769.3,20.5948]
[1749695633247,4.015717,2769.4,2769.3,3.2078]
[1749695633846,5.44402052,2769.4,2768.9,17.38709]
[1749695634048,3.2078,2769.1,2768.7,16.665]
[1749695634349,2.741737,2769.0,2768.9,0.72209]
[1749695634550,3.463817,2769.0,2768.8,16.665]
[1749695634751,2.046137,2768.9,2768.8,17.38713]
[1749695634951,3.343637,2768.9,2768.8,17.38713]
[1749695635152,3.343637,2768.9,2768.8,0.72213]
[1749695635356,3.343637,2768.9,2768.8,17.38713]
[1749695638255,3.343637,2768.9,2768.8,16.665]
[1749695638459,4.065747,2768.9,2768.8,16.665]
[1749695639160,3.343637,2768.9,2768.8,17.38713]
[1749695639552,3.942837,2768.9,2768.8,17.38713]
[1749695640061,2.043437,2768.9,2768.8,17.38713]
[1749695644256,2.043437,2768.9,2768.8,20.59493]
[1749695644860,2.043437,2768.9,2768.8,20.6569472]
[1749695645058,1.444237,2768.9,2768.8,20.6569472]
[1749695645357,0.5417,2769.0,2768.9,0.72211]
[1749695645559,1.98619879,2769.0,2768.9,0.72211]
[1749695647661,1.98619879,2769.0,2768.9,5.07411]
[1749695647861,0.5417,2769.0,2768.9,6.32161]
[1749695649353,1.98614315,2769.0,2768.9,6.32161]
[1749695649558,1.98614315,2769.0,2768.9,21.74011]
[1749695650166,2.70822315,2769.0,2768.9,21.018]
[1749695650463,1.98614315,2769.0,2768.9,0.72211]
[1749695650756,5.19394315,2769.0,2768.6,4.4130172]
[1749695650962,3.30194315,2768.9,2768.6,4.4130172]
[1749695651160,1.44444315,2768.8,2768.7,0.72215]
[1749695651356,3.30534315,2768.8,2768.7,0.72215]
[1749695652365,3.30534315,2768.8,2768.6,0.72219]
[1749695652559,1.44444315,2768.7,2768.6,0.72219]
[1749695652752,2.66944315,2768.7,2768.6,0.72219]
[1749695653851,1.44444315,2768.7,2768.6,0.72219]
[1749695655157,2.66944315,2768.7,2768.6,0.72219]
[1749695655664,5.87724315,2768.7,2768.4,16.666]
[1749695655865,1.44444315,2768.6,2768.5,0.7222]
[1749695656067,2.67454315,2768.6,2768.5,0.72221]
[1749695656566,2.67454315,2768.6,2768.3,16.666]
[1749695656567,2.67454315,2768.6,2768.4,0.72222]
[1749695656758,1.44444315,2768.5,2768.4,0.72222]
[1749695656959,2.67454315,2768.5,2768.3,16.666]
[1749695657159,1.44444315,2768.4,2768.3,0.72224]
[1749695659869,1.44444315,2768.4,2768.3,0.7842572]
[1749695660567,1.44482798,2768.4,2768.3,0.0620172]
[1749695660770,1.44482798,2768.4,2768.3,0.7842772]
[1749695661363,2.16706798,2768.4,2768.3,0.0620172]
[1749695661673,1.44482798,2768.4,2768.3,0.7842772]
[1749695664270,1.44482798,2768.4,2768.3,2.0820772]
[1749695665379,1.44482798,2768.4,2768.3,0.7842772]
[1749695665964,0.00541067,2768.6,2768.5,0.72221]
[1749695666158,1.45017037,2768.6,2768.5,0.72221]
[1749695666569,0.00541067,2768.6,2768.5,7.61391]
[1749695673575,0.00541067,2768.6,2768.5,2.61391]
[1749695675276,0.00541067,2768.6,2768.5,58.81391]
[1749695675471,1.44999781,2768.6,2768.5,0.72221]
[1749695675668,2.66599781,2768.6,2768.5,17.38621]
[1749695676275,2.66599781,2768.6,2768.5,17.4482272]
[1749695676474,3.84889781,2768.6,2768.5,0.7842272]
[1749695676781,3.84889781,2768.6,2768.5,17.4482272]
[1749695677171,3.84889781,2768.6,2768.5,0.7842272]
[1749695677373,4.57108781,2768.6,2768.5,0.0620172]
[1749695677569,4.57108781,2768.6,2768.5,16.7260172]
[1749695677877,3.84889781,2768.6,2768.5,17.4482272]
[1749695679379,3.84889781,2768.6,2768.5,0.0620172]
[1749695679680,3.84889781,2768.6,2768.5,16.7260172]
[1749695679882,4.57108781,2768.6,2768.5,0.0620172]
[1749695680479,4.57108781,2768.6,2768.5,0.7842272]
[1749695680480,3.84889781,2768.6,2768.5,0.7842272]
[1749695680877,2.66599781,2768.6,2768.5,0.7842272]
[1749695681073,1.44999781,2768.6,2768.5,0.7842272]
[1749695681374,0.5417,2768.7,2768.6,0.72219]
[1749695681575,1.2367,2769.3,2769.2,0.72203]
[1749695681782,2.6852734,2769.3,2769.2,21.73603]
[1749695681979,2.6852734,2769.3,2769.2,24.94383]
[1749695682175,1.4485734,2769.3,2769.2,24.94383]
[1749695682483,0.0042,2769.3,2769.2,24.94383]
[1749695683979,1.44838961,2769.3,2769.2,24.94383]
[1749695684477,1.44838961,2769.3,2769.2,24.94083]
[1749695685589,0.00541067,2769.5,2769.4,0.72198]
[1749695688184,0.00541067,2769.5,2769.4,5.72198]
[1749695688484,6.7e-07,2769.5,2769.4,5.72198]
[1749695689088,6.7e-07,2769.5,2769.4,7.01388]
[1749695689678,0.6047,2770.4,2770.3,0.72174]
[1749695689983,0.6047,2770.4,2770.3,17.38174]
[1749695695592,0.6047,2770.4,2770.3,21.72474]
[1749695697194,0.00541067,2770.6,2770.5,0.72169]
[1749695697391,0.00541067,2770.6,2770.5,3.92949]
[1749695699195,0.00541067,2770.6,2770.5,24.92849]
[1749695701099,6.7e-07,2770.6,2770.5,29.92849]
[1749695702391,6.7e-07,2770.6,2770.5,24.92849]
[1749695703299,0.6228,2771.4,2771.3,0.72148]
[1749695703604,1.3011,2772.0,2771.9,0.72133]
[1749695703800,1.3011,2772.0,2771.9,17.37333]
[1749695704403,1.3011,2772.0,2771.9,16.652]
[1749695704602,2.0224,2772.0,2771.9,16.652]
[1749695704796,2.74419795,2772.0,2771.9,16.652]
[1749695705097,3.46551795,2772.0,2771.9,16.652]
[1749695705300,8.46551795,2772.0,2771.9,16.652]
[1749695705698,7.74419795,2772.0,2771.8,16.651]
[1749695706005,5.37222795,2771.9,2771.8,16.651]
[1749695706204,6.67652795,2771.9,2771.8,16.651]
[1749695706405,11.67652795,2771.9,2771.8,16.651]
[1749695706602,11.67652795,2771.9,2771.7,0.00541067]
[1749695706603,0.72135,2771.8,2771.7,0.00541067]
[1749695706906,3.46874795,2771.8,2771.7,0.00541067]
[1749695707105,8.46874795,2771.8,2771.7,0.00541067]
[1749695707305,7.74739795,2771.8,2771.7,0.00541067]
[1749695707704,7.74739795,2771.8,2771.7,0.72679067]
[1749695707901,2.74739795,2771.8,2771.7,0.72679067]
[1749695708909,1.44309795,2771.8,2771.7,5.07079067]
[1749695709410,2.72889795,2771.8,2771.7,5.07079067]
[1749695709604,3.34279795,2771.8,2771.7,5.07079067]
[1749695709803,4.06414795,2771.8,2771.7,4.34941067]
[1749695710006,4.06414795,2771.8,2771.7,16.65441067]
[1749695710502,3.34279795,2771.8,2771.7,17.37579067]
[1749695710908,2.05699795,2771.8,2771.7,17.37579067]
[1749695711203,1.44309795,2771.8,2771.7,20.58359067]
[1749695711413,0.00541067,2772.2,2772.1,0.72127]
[1749695711600,1.44822405,2772.2,2772.1,5.06527]
[1749695712103,1.44822405,2772.2,2772.1,45.86527]
[1749695713211,0.00541067,2772.2,2772.1,47.64267]
[1749695713709,6.7e-07,2772.2,2772.1,69.28967]
[1749695714701,0.6207,2773.1,2773.0,0.72104]
[1749695714905,2.06303408,2773.1,2773.0,21.70904]
[1749695715306,1.44233408,2773.1,2773.0,21.70904]
[1749695717608,0.00541067,2773.3,2773.0,21.70904]
[1749695717609,0.00541067,2773.3,2773.2,0.72099]
[1749695717813,1.44748253,2773.3,2773.2,3.92879]
[1749695720210,1.44748253,2773.3,2773.2,24.90879]
[1749695721413,0.5967,2773.8,2773.7,0.72086]
[1749695721610,0.5967,2773.8,2773.4,3.2078]
[1749695721815,1.2095,2773.7,2773.5,21.7009]
[1749695722114,1.2095,2773.7,2773.6,5.06088]
[1749695722515,1.2095,2773.7,2773.6,4.34]
[1749695722716,1.2095,2773.7,2773.6,5.06088]
[1749695723618,1.2095,2773.7,2773.6,20.976]
[1749695723813,1.2095,2773.7,2773.4,3.21321067]
[1749695724015,1.93036,2773.7,2773.4,3.93413067]
[1749695724213,0.72091,2773.5,2773.4,3.21321067]
[1749695724513,2.15028352,2773.5,2773.4,24.18921067]
[1749695724906,4.09328352,2773.5,2773.4,24.18921067]
[1749695725210,5.87171,2773.5,2773.4,0.00541067]
[1749695725410,5.87171,2773.5,2773.4,16.64141067]
[1749695726018,5.1508,2773.5,2773.4,17.36235067]
[1749695726816,5.87171,2773.5,2773.4,0.00541067]
[1749695727015,5.87171,2773.5,2773.4,16.64041067]
[1749695727407,5.87171,2773.5,2773.4,17.36135067]
[1749695728117,5.1508,2773.5,2773.4,17.36135067]
[1749695728413,5.87171,2773.5,2773.4,17.36135067]
[1749695728615,5.1508,2773.5,2773.4,17.36135067]
[1749695728816,5.87171,2773.5,2773.4,17.36135067]
[1749695729315,8.74169458,2773.5,2773.4,16.64041067]
[1749695729921,5.87171,2773.5,2773.4,16.64041067]
[1749695730219,10.87171,2773.5,2773.4,16.64041067]
[1749695730421,10.87171,2773.5,2773.4,0.00541067]
[1749695730617,0.72104,2773.0,2772.9,3.2078]
[1749695730822,0.72114,2772.7,2772.6,5.06113]
[1749695731018,2.85789014,2773.0,2772.6,5.06113]
[1749695731019,0.7211,2772.8,2772.7,0.72112]
[1749695731212,2.57598,2772.9,2772.8,0.72109]
[1749695731409,1.8549,2772.9,2772.8,0.72109]
[1749695732418,2.57597,2772.9,2772.8,0.72109]
[1749695733223,2.57597,2772.9,2772.7,0.7211]
[1749695733519,1.44259055,2772.8,2772.7,0.7211]
[1749695733724,2.79628055,2772.8,2772.7,0.7211]
[1749695734024,0.72112,2772.7,2772.6,17.36155067]
[1749695734229,1.44259055,2772.7,2772.6,17.36155067]
[1749695735918,7.16371055,2772.7,2772.6,6.7e-07]
[1749695736222,0.72131,2772.0,2771.8,21.69634]
[1749695736425,1.44259055,2771.9,2771.8,17.35634]
[1749695737325,1.44259055,2771.9,2771.7,4.34]
[1749695737326,0.72135,2771.8,2771.7,4.34]
[1749695737621,0.72138,2771.7,2771.6,0.00541067]
[1749695737829,2.16397055,2771.7,2771.6,0.00541067]
[1749695738019,3.43577055,2771.7,2771.6,0.00541067]
[1749695739618,6.64357055,2771.7,2771.6,0.00541067]
[1749695739817,11.64357055,2771.7,2771.6,0.00541067]
[1749695741218,14.50823136,2771.7,2771.6,0.00541067]
[1749695742229,11.64357055,2771.7,2771.6,0.00541067]
[1749695743527,12.00574662,2771.7,2771.6,0.00541067]
[1749695745330,14.15115919,2771.7,2771.6,0.00541067]
[1749695746225,12.00574662,2771.7,2771.6,0.00541067]
[1749695750343,7.00574662,2771.7,2771.6,0.00541067]
[1749695753739,5.73394662,2771.7,2771.6,0.00541067]
[1749695757742,1.80371,2771.4,2770.8,5.06259]
[1749695757934,3.92939,2770.9,2770.8,0.72159]
[1749695758641,3.92939,2770.9,2770.7,4.341]
[1749695758642,0.72161,2770.8,2770.7,4.341]
[1749695758944,2.16525538,2770.8,2770.7,4.341]
[1749695759438,2.16525538,2770.8,2770.6,0.00541067]
[1749695759439,0.72164,2770.7,2770.6,0.00541067]
[1749695759644,2.16528538,2770.7,2770.6,0.00541067]
[1749695759844,2.79188538,2770.7,2770.6,0.00541067]
[1749695760935,0.72177,2770.2,2770.1,4.342]
[1749695761142,0.72177,2770.2,2769.7,4.9424]
[1749695761143,0.72187,2769.8,2769.7,4.9424]
[1749695761340,2.16598822,2769.8,2769.7,4.342]
[1749695761541,2.16598822,2769.8,2769.7,5.0639]
[1749695761732,2.16598822,2769.8,2769.7,4.342]
[1749695762139,0.72193,2769.6,2769.5,0.00541067]
[1749695762441,2.16604822,2769.6,2769.5,0.00541067]
[1749695762643,1.44411822,2769.6,2769.5,0.72736067]
[1749695762837,2.16604822,2769.6,2769.5,0.00541067]
[1749695763043,1.44411822,2769.6,2769.5,0.00541067]
[1749695763244,2.16604822,2769.6,2769.5,0.00541067]
[1749695763843,1.44411822,2769.6,2769.5,17.37236067]
[1749695764149,3.2078,2769.9,2769.7,0.7219]
[1749695764449,3.92965,2769.9,2769.8,1.2187]
[1749695764648,5.37379122,2769.9,2769.8,1.2187]
[1749695765047,4.65194122,2769.9,2769.8,1.94057]
[1749695765258,4.65194122,2769.9,2769.8,1.2187]
[1749695765549,0.72187,2769.8,2769.7,16.648]
[1749695765749,2.16601122,2769.8,2769.7,16.648]
[1749695765954,1.44414122,2769.8,2769.7,16.648]
[1749695766143,1.44414122,2769.8,2769.7,17.3699]
[1749695767552,1.44414122,2769.8,2769.7,16.648]
[1749695767947,1.44414122,2769.8,2769.7,17.3699]
[1749695768255,1.44414122,2769.8,2769.7,16.648]
[1749695768549,1.44414122,2769.8,2769.7,17.3699]
[1749695769552,1.44414122,2769.8,2769.7,16.648]
[1749695769754,3.59294071,2769.8,2769.7,16.648]
[1749695769946,3.59294071,2769.8,2769.7,17.3699]
[1749695770149,3.59294421,2769.8,2769.7,16.648]
[1749695770348,3.59294421,2769.8,2769.7,17.3699]
[1749695771552,1.44414472,2769.8,2769.7,17.3699]
[1749695773251,3.59139639,2769.8,2769.7,17.3699]
[1749695776455,3.59139639,2769.8,2769.7,17.3719]
[1749695776948,1.44414472,2769.8,2769.7,22.3719]
[1749695777144,0.5415,2769.9,2769.8,0.72187]
[1749695777348,0.83,2769.9,2769.8,1.97197]
[1749695777553,0.83,2769.9,2769.8,6.97197]
[1749695778155,3.2078,2770.3,2769.9,0.72185]
[1749695778355,5.35505167,2770.4,2770.0,6.201]
[1749695778556,0.72175,2770.3,2770.1,0.72179]
[1749695778850,2.14725167,2770.3,2770.2,16.65]
[1749695779156,2.14725167,2770.3,2769.9,0.639]
[1749695779351,5.35505167,2770.1,2770.0,21.71582]
[1749695779554,3.2078,2770.1,2770.0,17.37182]
[1749695779956,2.14725167,2770.2,2770.1,0.7218]
[1749695780158,2.14725167,2770.3,2770.2,0.72177]
[1749695780351,5.36046234,2770.5,2770.4,0.72172]
[1749695780558,5.36046234,2770.5,2770.4,17.37072]
[1749695781158,3.21321067,2770.5,2770.4,17.37072]
[1749695782059,0.00541067,2770.5,2770.4,17.37072]
[1749695782556,3.93490067,2770.5,2770.2,0.6121]
[1749695782758,3.21321067,2770.5,2769.6,5.01258]
[1749695783061,3.92958,2770.2,2770.0,0.72181]
[1749695783860,3.2078,2770.2,2770.1,17.3698]
[1749695784659,3.815,2770.2,2770.1,17.3698]
[1749695784864,0.6072,2770.2,2770.1,17.3698]
[1749695785162,5.36046234,2770.5,2770.1,16.648]
[1749695785365,5.36046234,2770.5,2770.4,0.72172]
[1749695785565,3.21321067,2770.5,2770.4,0.72172]
[1749695786961,3.2078,2771.2,2770.6,1.80417]
[1749695787160,3.8045,2771.2,2771.1,0.72151]
[1749695787364,3.8045,2771.2,2770.7,21.581]
[1749695787668,1.95495,2771.1,2770.8,0.7216]
[1749695788567,3.80991067,2771.2,2771.0,0.72156]
[1749695788762,3.80991067,2771.2,2770.7,21.58641067]
[1749695789066,5.76484067,2771.2,2770.9,0.72159]
[1749695789267,1.44348321,2771.1,2771.0,0.72156]
[1749695789565,1.44348321,2771.1,2770.9,0.72156]
[1749695789757,1.44348321,2771.0,2770.9,0.72159]
[1749695793066,1.44348321,2771.0,2770.7,4.34741067]
[1749695793269,3.92941,2770.8,2770.7,20.99341067]
[1749695793570,5.37289321,2770.8,2770.7,20.99341067]
[1749695793768,6.55959321,2770.8,2770.7,16.65141067]
[1749695794461,6.55959321,2770.8,2770.7,0.00541067]
[1749695796358,11.55959321,2770.8,2770.7,0.00541067]
[1749695796759,0.72176,2770.3,2770.2,16.645]
[1749695796963,0.72183,2770.0,2769.9,0.72185]
[1749695797158,3.92963,2770.0,2769.9,0.72185]
[1749695797365,4.65128321,2770.0,2769.9,0.72185]
[1749695797760,5.90908321,2770.0,2769.9,0.72185]
[1749695800175,5.90908321,2770.0,2769.7,4.34641067]
[1749695800471,1.44348321,2769.9,2769.8,0.72187]
[1749695802167,1.44348321,2769.9,2769.8,17.36887]
[1749695806282,1.4440577,2769.9,2769.8,17.36887]
[1749695809282,3.2078,2770.3,2770.2,0.72177]
[1749695809480,2.14725167,2770.8,2770.7,0.72164]
[1749695809481,3.2078,2770.8,2770.7,0.72164]
[1749695809688,1.2575,2771.1,2771.0,0.72156]
[1749695810578,1.2575,2771.1,2770.9,0.72157]
[1749695810780,1.2575,2771.1,2771.0,0.72156]
[1749695811181,0.6242,2771.1,2771.0,0.72156]
[1749695811485,0.00541067,2771.2,2771.1,0.72153]
[1749695813676,0.00541067,2771.2,2771.1,5.06253]
[1749695814274,3.21321067,2771.2,2771.1,4.341]
[1749695814684,3.21321067,2771.2,2771.1,5.06253]
[1749695815587,3.93472067,2771.2,2771.1,4.341]
[1749695815787,3.21321067,2771.2,2771.1,5.06253]
[1749695815987,3.93472067,2771.2,2771.1,4.341]
[1749695816492,3.21321067,2771.2,2771.1,5.06253]
[1749695816686,3.93472067,2771.2,2771.1,5.06253]
[1749695816888,3.21321067,2771.2,2771.1,5.06253]
[1749695817590,3.93472067,2771.2,2771.1,5.06253]
[1749695817792,3.93472067,2771.2,2771.1,4.341]
[1749695818692,3.21321067,2771.2,2770.8,1.218]
[1749695818887,3.21321067,2771.2,2770.9,20.984]
[1749695819094,3.2078,2771.1,2771.0,0.72156]
[1749695820595,3.92934,2771.1,2770.9,20.984]
[1749695820792,3.92935,2771.1,2770.9,21.70558]
[1749695820993,0.72158,2771.0,2770.8,1.33441]
[1749695821188,1.44351428,2770.9,2770.8,1.33441]
[1749695821389,1.80404,2770.8,2770.1,3.2078]
[1749695821589,3.2078,2770.6,2770.2,20.983]
[1749695821892,2.70981428,2770.5,2770.2,21.70475]
[1749695822090,2.16523428,2770.4,2770.2,21.70475]
[1749695822285,1.98801,2770.5,2770.2,21.70475]
[1749695822486,2.16556658,2770.4,2770.3,16.643]
[1749695822692,0.72174,2770.3,2770.2,4.34]
[1749695822891,0.72173,2770.4,2770.2,21.70376]
[1749695823292,0.72173,2770.4,2770.2,5.06176]
[1749695823592,0.72172,2770.4,2770.3,16.642]
[1749695823787,1.4438618,2770.4,2770.3,16.642]
[1749695823993,2.1655818,2770.4,2770.3,16.642]
[1749695824194,1.4438618,2770.4,2770.3,17.36374]
[1749695824694,2.1655818,2770.4,2770.3,16.642]
[1749695825095,2.1655818,2770.4,2770.3,16.643]
[1749695825498,1.4438618,2770.4,2770.3,17.36474]
[1749695826401,1.4438618,2770.4,2770.3,17.4267572]
[1749695826597,1.4438618,2770.4,2770.3,16.7050172]
[1749695826802,1.4438618,2770.4,2770.3,17.4267572]
[1749695827701,3.2078,2770.6,2770.5,0.72169]
[1749695827894,4.65153143,2770.6,2770.5,0.72169]
[1749695830305,1.44373143,2770.6,2770.5,0.72169]
[1749695832007,0.72169,2770.5,2770.3,16.643]
[1749695832205,2.16545143,2770.4,2770.3,16.643]
[1749695832401,2.16545143,2770.4,2770.3,17.36474]
[1749695832805,1.44373143,2770.4,2770.3,17.36474]
[1749695833305,2.16545143,2770.4,2770.3,17.36474]
[1749695833609,2.16545143,2770.4,2770.3,17.4267572]
[1749695834109,1.44373143,2770.4,2770.3,17.4267572]
[1749695834707,1.44379912,2770.5,2770.3,16.7050172]
[1749695835011,1.44379912,2770.4,2770.3,17.4267572]
[1749695835214,1.44370306,2770.4,2770.3,17.4267572]
[1749695835414,1.44370306,2770.4,2770.3,18.56804]
[1749695837617,1.44370306,2770.4,2770.3,23.56804]
[1749695837912,3.2078,2771.0,2770.8,0.72159]
[1749695838214,3.92936,2771.0,2770.9,16.643]
[1749695838619,5.10666,2771.0,2770.9,16.643]
[1749695838917,4.3851,2771.0,2770.8,16.643]
[1749695839318,0.72159,2770.9,2770.8,16.643]
[1749695839515,1.89889,2770.9,2770.8,16.643]
[1749695839911,1.1773,2770.9,2770.8,17.36461]
[1749695840122,3.92938,2771.0,2770.8,16.643]
[1749695840314,3.92938,2771.0,2770.8,17.3646]
[1749695840614,3.92938,2771.0,2770.9,0.72159]
[1749695840615,3.2078,2771.0,2770.9,0.72159]
[1749695841018,1.32725,2771.1,2770.9,0.72159]
[1749695841616,0.72156,2771.0,2770.8,17.36459]
[1749695841816,3.2078,2771.0,2770.9,0.72159]
[1749695842021,0.6057,2771.1,2771.0,0.72156]
[1749695842612,0.72159,2770.9,2770.8,16.643]
[1749695842816,3.2078,2771.0,2770.5,3.2078]
[1749695843011,1.2554,2770.9,2770.6,20.98]
[1749695843220,1.977,2770.9,2770.7,0.72164]
[1749695843822,1.977,2770.9,2770.8,0.72161]
[1749695844027,1.2554,2770.9,2770.8,0.72161]
[1749695844217,3.2078,2771.0,2770.9,0.72159]
[1749695844924,0.6057,2771.1,2771.0,0.72156]
[1749695845823,2.75295167,2771.1,2770.6,20.98]
[1749695846123,3.2078,2771.0,2770.9,0.72159]
[1749695846319,0.00541067,2771.2,2771.1,0.72153]
[1749695846520,0.00541067,2771.2,2771.1,44.72933]
[1749695846826,0.5412,2771.5,2771.4,0.72146]
[1749695847018,3.2078,2772.0,2771.9,0.72133]
[1749695847215,3.2078,2772.4,2772.3,0.72122]
[1749695847427,3.2078,2772.4,2772.3,21.70022]
[1749695848327,3.2078,2772.4,2772.3,20.979]
[1749695848815,3.2078,2772.4,2772.3,21.70022]
[1749695849924,4.65051935,2772.4,2772.3,21.70022]
[1749695851220,0.00541067,2772.6,2772.5,0.72117]
[1749695854623,0.00541067,2772.6,2772.4,0.72118]
[1749695854823,0.72655067,2772.6,2772.5,20.969]
[1749695855122,0.00541067,2772.6,2772.5,20.969]
[1749695855727,1.26471067,2772.6,2772.5,20.969]
[1749695855923,1.26471067,2772.6,2772.4,0.72118]
[1749695856126,0.00541067,2772.6,2772.5,21.69017]
[1749695858426,0.00541067,2772.6,2772.5,0.72117]
[1749695858626,0.00541067,2772.6,2772.5,21.68817]
[1749695864033,0.00541067,2772.6,2772.5,21.68717]
[1749695864226,0.00541067,2772.6,2772.5,4.336]
[1749695864435,3.93435067,2772.6,2772.5,20.966]
[1749695864730,3.21321067,2772.6,2772.5,21.68717]
[1749695865138,4.50311067,2772.6,2772.5,21.68717]
[1749695865334,3.21321067,2772.6,2772.5,21.68717]
[1749695865941,0.00541067,2772.6,2772.5,21.68717]
[1749695867435,0.00541067,2772.6,2772.5,26.68717]
[1749695867833,0.00541067,2772.6,2772.5,27.88567]
[1749695868539,0.00541067,2772.6,2772.5,22.88567]
[1749695870842,0.00541067,2772.6,2772.5,63.68567]
[1749695873246,1.44777965,2772.6,2772.5,63.68567]
[1749695873650,1.44777965,2772.6,2772.5,62.48717]
[1749695873950,1.44777965,2772.6,2772.5,21.68717]
[1749695874551,1.44777965,2772.6,2772.5,22.96027]
[1749695875250,1.44777965,2772.6,2772.5,21.68717]
[1749695876149,1.44777965,2772.6,2772.5,22.96027]
[1749695878955,0.00541067,2772.6,2772.5,22.96027]
[1749695879156,1.44774345,2772.6,2772.5,22.96027]
[1749695880051,1.44774345,2772.6,2772.5,21.68217]
[1749695880449,1.44774345,2772.6,2772.5,22.92187]
[1749695880645,1.44774345,2772.6,2772.5,27.92187]
[1749695882052,1.44774345,2772.6,2772.5,5.05717]
[1749695882250,2.16888345,2772.6,2772.5,4.336]
[1749695882456,1.44774345,2772.6,2772.5,20.96]
[1749695882750,2.74184345,2772.6,2772.5,21.68117]
[1749695883858,4.90038332,2772.6,2772.5,21.68117]
[1749695884356,2.74184345,2772.6,2772.5,21.68117]
[1749695884947,4.90038332,2772.6,2772.5,21.68117]
[1749695885153,4.90038332,2772.6,2772.5,5.05717]
[1749695885347,4.90038332,2772.6,2772.5,21.68217]
[1749695885558,2.74184345,2772.6,2772.5,21.68217]
[1749695886859,4.90038332,2772.6,2772.5,21.68217]
[1749695887459,2.74184345,2772.6,2772.5,21.68217]
[1749695888062,5.94964345,2772.6,2772.5,4.336]
[1749695888254,5.94964345,2772.6,2772.5,21.68217]
[1749695890254,2.74184345,2772.6,2772.5,21.68217]
[1749695897661,2.74184345,2772.6,2772.5,20.961]
[1749695898060,3.46298345,2772.6,2772.5,20.961]
[1749695898353,2.74184345,2772.6,2772.5,20.961]
[1749695898556,2.74184345,2772.6,2772.5,21.68217]
[1749695899355,1.44774345,2772.6,2772.5,21.68217]
[1749695901264,0.6168,2773.0,2772.9,0.72107]
[1749695901463,1.44246205,2773.0,2772.9,5.05507]
[1749695902059,1.44246205,2773.0,2772.9,21.67907]
[1749695902468,0.00541067,2773.2,2773.1,0.72101]
[1749695907379,0.6267,2773.9,2773.8,0.72083]
[1749695907577,0.6267,2773.9,2773.8,21.67483]
[1749695908378,1.34752,2773.9,2773.6,0.72628067]
[1749695908681,4.4395,2773.8,2773.7,21.67186]
[1749695908883,1.2317,2773.8,2773.7,21.67186]
[1749695909582,1.2317,2773.8,2773.7,20.951]
[1749695909782,1.2317,2773.8,2773.7,21.67186]
[1749695910080,1.2317,2773.8,2773.7,20.951]
[1749695910272,1.2317,2773.8,2773.7,21.67186]
[1749695910472,5.16033,2773.8,2773.7,20.951]
[1749695910873,4.4395,2773.8,2773.7,20.951]
[1749695911074,4.4395,2773.8,2773.7,21.67186]
[1749695911282,5.16033,2773.8,2773.6,0.72628067]
[1749695911577,5.16033,2773.8,2773.7,16.619]
[1749695911578,4.4395,2773.8,2773.7,16.619]
[1749695911781,4.4395,2773.8,2773.7,17.33986]
[1749695911976,3.81181067,2774.1,2773.7,16.619]
[1749695912176,3.81181067,2774.1,2774.0,0.72078]
[1749695913181,5.58261067,2774.1,2774.0,0.72078]
[1749695913383,5.58261067,2774.1,2773.8,0.72082]
[1749695913384,7.02455494,2774.1,2773.8,0.72082]
[1749695913575,1.44194427,2774.0,2773.9,0.7208]
[1749695913777,0.00541067,2774.1,2774.0,0.72078]
[1749695913978,0.00541067,2774.1,2774.0,2.65088]
[1749695914686,0.00541067,2774.1,2774.0,21.66978]
[1749695914890,0.63201067,2774.1,2774.0,21.66978]
[1749695915079,0.63201067,2774.1,2774.0,4.331]
[1749695915292,3.34250966,2774.1,2774.0,20.948]
[1749695915988,4.06325966,2774.1,2774.0,20.948]
[1749695916182,3.34250966,2774.1,2773.9,16.617]
[1749695916383,2.16267899,2774.0,2773.9,16.617]
[1749695916583,3.43127899,2774.0,2773.9,16.617]
[1749695917282,8.43127899,2774.0,2773.9,16.617]
[1749695917891,0.72086,2773.7,2773.6,0.00541067]
[1749695918084,5.37055899,2773.7,2773.6,0.00541067]
[1749695918281,11.45185899,2773.7,2772.7,4.33]
[1749695918584,0.72105,2773.0,2772.8,17.33708]
[1749695918782,1.8564,2772.9,2772.8,17.33708]
[1749695919086,1.8564,2772.9,2772.7,4.33]
[1749695919286,1.8564,2772.9,2772.8,0.72109]
[1749695919687,1.8564,2772.9,2772.7,4.33]
[1749695919987,1.8564,2772.9,2772.8,0.72109]
[1749695920390,0.6155,2772.9,2772.8,0.72109]
[1749695925586,3.8258,2773.2,2773.1,0.72101]
[1749695925791,5.26825277,2773.2,2773.1,0.72101]
[1749695926494,5.26825277,2773.2,2773.0,0.72102]
[1749695926693,1.44245277,2773.1,2772.7,21.5438]
[1749695926883,1.2908,2773.1,2773.0,0.72104]
[1749695927194,2.73325289,2773.1,2773.0,0.72104]
[1749695928391,1.44245289,2773.1,2773.0,0.72104]
[1749695936295,1.73025289,2773.1,2773.0,0.72104]
[1749695939702,1.73025289,2773.1,2773.0,17.33804]
[1749695943403,0.2878,2773.1,2773.0,17.33804]
[1749695944105,0.5408,2773.2,2773.1,0.72101]